Workbook

Sheet input
E2: Messprozessanalyse Verfahren 3 Anova (Basis Bosch Heft 10) | P2: =IF(calculation!AA44=0,"Werte sind berechnet","Werte wurden verändert, bitte berechnen") -> Werte sind berechnet
B3: Messmittel | E3: Teil | I3: Merkmal
B4: Bez.: | E4: Objekt: | I4: Bezeichnung
B5: Nummer: | E5: Nummer: | I5: Merkmal Nr.
B6: Messbereich | E6: Zeichnung: | I6: Nennmaß
B7: Auflösung: | E7: Einheit: | I7: Einheit | L7: mm
I8: OGW | L8: 6.03
B9: Akt. Dat.: | I9: UGW | L9: 5.97
B10: Bearbeiter: | I10: Toleranz: | L10: =L8-L9 -> 0.06
B13: Ergebnis aus MSA Verfahren 1 | E13: Anzahl der Teile n | H13: =COUNT(C20:C44) -> 25 | I13: Messsystem ist
B14: Protokoll Nr. | E14: Anzahl der Prüfer k | H14: 1 | I14: fähig bis | L14: 0.1
E15: Anz. Prüfungen je Prüfer / Objekt r | H15: =COUNT(C20:H20) -> 2 | I15: akzeptabel bis | L15: 0.3
B16: Das Prüfmittel | D16: ist fähig | I16: nicht akzeptabel ab | L16: =L15 -> 0.3
C18: Prüfer j=1 | D18: Hauser
B19: Teil Nr. | C19: m=1 | D19: m=2 | E19: m=3 | F19: m=4 | G19: m=5 | H19: m=6
B20: i=1 | C20: 6.029 | D20: 6.03
B21: i=2 | C21: 6.019 | D21: 6.02
B22: i=3 | C22: 6.004 | D22: 6.003
B23: i=4 | C23: 5.982 | D23: 5.982
B24: i=5 | C24: 6.009 | D24: 6.009
B25: i=6 | C25: 5.971 | D25: 5.972
B26: i=7 | C26: 5.995 | D26: 5.997
B27: i=8 | C27: 6.014 | D27: 6.018
B28: i=9 | C28: 5.985 | D28: 5.987
B29: i=10 | C29: 6.024 | D29: 6.028
B30: i=11 | C30: 6.033 | D30: 6.032
B31: i=12 | C31: 6.02 | D31: 6.019
B32: i=13 | C32: 6.007 | D32: 6.007
B33: i=14 | C33: 5.985 | D33: 5.986
B34: i=15 | C34: 6.014 | D34: 6.014
B35: i=16 | C35: 5.973 | D35: 5.972
B36: i=17 | C36: 5.997 | D36: 5.996
B37: i=18 | C37: 6.019 | D37: 6.015
B38: i=19 | C38: 5.987 | D38: 5.986
B39: i=20 | C39: 6.029 | D39: 6.025
B40: i=21 | C40: 6.017 | D40: 6.019
B41: i=22 | C41: 6.003 | D41: 6.001
B42: i=23 | C42: 6.009 | D42: 6.012
B43: i=24 | C43: 5.987 | D43: 5.987
B44: i=25 | C44: 6.006 | D44: 6.003
B46: Verfügbare Anzahl Messobjekte | E46: Erforderliche Mindestanzahl Messreihen
B47: =">=25" -> >=25 | E47: 2
B48: ="13 - 24" -> 13 - 24 | E48: 3
B49: ="9 - 12" -> 9 - 12 | E49: 4
B50: ="7 - 8" -> 7 - 8 | E50: 5
B51: ="5 - 6" -> 5 - 6 | E51: 6
E53: Standard- abweichung | F53: Streubreite | H53: Anteil an Gesamt- streubreite | I53: Anteil der Toleranz
B54: Einflussgrößen | E54: SD | F54: SV | H54: %SV | I54: %T
B55: Teile (Part Variation) Teilestreuung | D55: PV | E55: =calculation!G50 -> 0.01770080036 | F55: =IF(E55=0,0,6*E55) -> 0.1062048022 | G55: %PV | H55: =IF(F55="","",F55/$F$58) -> 0.9965707471 | I55: =IF(E55="","",F55/$L$10) -> 1.770080036
B56: Messeinrichtung (Equipment Variation) Wiederholpräzision | D56: EV | E56: =calculation!G53 -> 0.001469693846 | F56: =IF(E56=0,0,6*E56) -> 0.008818163074 | G56: %EV | H56: =IF(F56="","",F56/$F$58) -> 0.082745066 | I56: =IF(E56="","",F56/$L$10) -> 0.1469693846
B57: Prüfsystemstreuung | D57: GRR | E57: =calculation!G54 -> 0.001469693846 | F57: 0.008818163074 | G57: %GRR | H57: 0.082745066 | I57: 0.1469693846
B58: Gesamtstreuung (Total Variation) | D58: TV | E58: =calculation!G55 -> 0.01776170975 | F58: 0.1065702585 | G58: %TV | H58: 1 | I58: 1.776170975
B60: Anzahl unterscheidbarer Klassen (min 5) | F60: ndc | G60: =calculation!G56 -> 16
B62: =IF(I57<L14,"Das Messsystem ist fähig",IF(I57>L15,"Das Messsystem ist nicht fähig","Das Messsystem ist bedingt fähig")) -> Das Messsystem ist bedingt fähig
B63: =IF(G60<5,"(ndc) Der Messprozess ist nicht in der Lage genügend viele Teile unterscheidbar zu messen","(ndc) Der Messprozess ist in der Lage genügend viele Teile unterscheidbar zu messen") -> (ndc) Der Messprozess ist in der Lage genügend viele Teile unterscheidbar zu messen
K65: =0 -> 0
K66: =K65+L14 -> 0.1
K67: =L15-L14 -> 0.2
K68: =1-L15 -> 0.7

Sheet calculation (hidden)
C17: Prüfer j=1 | D17: =input!D18 -> Hauser | J17: Spannweite
B18: Teil Nr. | C18: m=1 | D18: m=2 | E18: m=3 | F18: m=4 | G18: m=5 | H18: m=6
B19: i=1 | C19: =IF(input!C20="","",input!C20) -> 6.029 | D19: =IF(input!D20="","",input!D20) -> 6.03 | E19: =IF(input!E20="","",input!E20) ->  | F19: =IF(input!F20="","",input!F20) ->  | G19: =IF(input!G20="","",input!G20) ->  | H19: =IF(input!H20="","",input!H20) ->  | J19: =IF(C19<>"",MAX(C19:H19)-MIN(C19:H19),#N/A) -> 0.001 | N19: 6.029 | O19: 6.03 | U19: =IF(C19=N19,0,1) -> 0 | V19: =IF(D19=O19,0,1) -> 0 | W19: 0 | X19: 0 | Y19: 0 | Z19: 0
B20: i=2 | C20: =IF(input!C21="","",input!C21) -> 6.019 | D20: =IF(input!D21="","",input!D21) -> 6.02 | E20: =IF(input!E21="","",input!E21) ->  | F20: =IF(input!F21="","",input!F21) ->  | G20: =IF(input!G21="","",input!G21) ->  | H20: =IF(input!H21="","",input!H21) ->  | J20: =IF(C20<>"",MAX(C20:H20)-MIN(C20:H20),#N/A) -> 0.001 | N20: 6.019 | O20: 6.02 | U20: =IF(C20=N20,0,1) -> 0 | V20: =IF(D20=O20,0,1) -> 0 | W20: =IF(E20=P20,0,1) -> 0 | X20: =IF(F20=Q20,0,1) -> 0 | Y20: =IF(G20=R20,0,1) -> 0 | Z20: =IF(H20=S20,0,1) -> 0
B21: i=3 | C21: =IF(input!C22="","",input!C22) -> 6.004 | D21: =IF(input!D22="","",input!D22) -> 6.003 | E21: =IF(input!E22="","",input!E22) ->  | F21: =IF(input!F22="","",input!F22) ->  | G21: =IF(input!G22="","",input!G22) ->  | H21: =IF(input!H22="","",input!H22) ->  | J21: 0.001 | N21: 6.004 | O21: 6.003 | U21: 0 | V21: 0 | W21: 0 | X21: 0 | Y21: 0 | Z21: 0
B22: i=4 | C22: =IF(input!C23="","",input!C23) -> 5.982 | D22: =IF(input!D23="","",input!D23) -> 5.982 | E22: =IF(input!E23="","",input!E23) ->  | F22: =IF(input!F23="","",input!F23) ->  | G22: =IF(input!G23="","",input!G23) ->  | H22: =IF(input!H23="","",input!H23) ->  | J22: 0 | N22: 5.982 | O22: 5.982 | U22: 0 | V22: 0 | W22: 0 | X22: 0 | Y22: 0 | Z22: 0
B23: i=5 | C23: =IF(input!C24="","",input!C24) -> 6.009 | D23: =IF(input!D24="","",input!D24) -> 6.009 | E23: =IF(input!E24="","",input!E24) ->  | F23: =IF(input!F24="","",input!F24) ->  | G23: =IF(input!G24="","",input!G24) ->  | H23: =IF(input!H24="","",input!H24) ->  | J23: 0 | N23: 6.009 | O23: 6.009 | U23: 0 | V23: 0 | W23: 0 | X23: 0 | Y23: 0 | Z23: 0
B24: i=6 | C24: =IF(input!C25="","",input!C25) -> 5.971 | D24: =IF(input!D25="","",input!D25) -> 5.972 | E24: =IF(input!E25="","",input!E25) ->  | F24: =IF(input!F25="","",input!F25) ->  | G24: =IF(input!G25="","",input!G25) ->  | H24: =IF(input!H25="","",input!H25) ->  | J24: 0.001 | N24: 5.971 | O24: 5.972 | U24: 0 | V24: 0 | W24: 0 | X24: 0 | Y24: 0 | Z24: 0
B25: i=7 | C25: =IF(input!C26="","",input!C26) -> 5.995 | D25: =IF(input!D26="","",input!D26) -> 5.997 | E25: =IF(input!E26="","",input!E26) ->  | F25: =IF(input!F26="","",input!F26) ->  | G25: =IF(input!G26="","",input!G26) ->  | H25: =IF(input!H26="","",input!H26) ->  | J25: 0.002 | N25: 5.995 | O25: 5.997 | U25: 0 | V25: 0 | W25: 0 | X25: 0 | Y25: 0 | Z25: 0
B26: i=8 | C26: =IF(input!C27="","",input!C27) -> 6.014 | D26: =IF(input!D27="","",input!D27) -> 6.018 | E26: =IF(input!E27="","",input!E27) ->  | F26: =IF(input!F27="","",input!F27) ->  | G26: =IF(input!G27="","",input!G27) ->  | H26: =IF(input!H27="","",input!H27) ->  | J26: 0.004 | N26: 6.014 | O26: 6.018 | U26: 0 | V26: 0 | W26: 0 | X26: 0 | Y26: 0 | Z26: 0
B27: i=9 | C27: =IF(input!C28="","",input!C28) -> 5.985 | D27: =IF(input!D28="","",input!D28) -> 5.987 | E27: =IF(input!E28="","",input!E28) ->  | F27: =IF(input!F28="","",input!F28) ->  | G27: =IF(input!G28="","",input!G28) ->  | H27: =IF(input!H28="","",input!H28) ->  | J27: 0.002 | N27: 5.985 | O27: 5.987 | U27: 0 | V27: 0 | W27: 0 | X27: 0 | Y27: 0 | Z27: 0
B28: i=10 | C28: =IF(input!C29="","",input!C29) -> 6.024 | D28: =IF(input!D29="","",input!D29) -> 6.028 | E28: =IF(input!E29="","",input!E29) ->  | F28: =IF(input!F29="","",input!F29) ->  | G28: =IF(input!G29="","",input!G29) ->  | H28: =IF(input!H29="","",input!H29) ->  | J28: 0.004 | N28: 6.024 | O28: 6.028 | U28: 0 | V28: 0 | W28: 0 | X28: 0 | Y28: 0 | Z28: 0
B29: i=11 | C29: =IF(input!C30="","",input!C30) -> 6.033 | D29: =IF(input!D30="","",input!D30) -> 6.032 | E29: =IF(input!E30="","",input!E30) ->  | F29: =IF(input!F30="","",input!F30) ->  | G29: =IF(input!G30="","",input!G30) ->  | H29: =IF(input!H30="","",input!H30) ->  | J29: 0.001 | N29: 6.033 | O29: 6.032 | U29: 0 | V29: 0 | W29: 0 | X29: 0 | Y29: 0 | Z29: 0
B30: i=12 | C30: =IF(input!C31="","",input!C31) -> 6.02 | D30: =IF(input!D31="","",input!D31) -> 6.019 | E30: =IF(input!E31="","",input!E31) ->  | F30: =IF(input!F31="","",input!F31) ->  | G30: =IF(input!G31="","",input!G31) ->  | H30: =IF(input!H31="","",input!H31) ->  | J30: 0.001 | N30: 6.02 | O30: 6.019 | U30: 0 | V30: 0 | W30: 0 | X30: 0 | Y30: 0 | Z30: 0
B31: i=13 | C31: =IF(input!C32="","",input!C32) -> 6.007 | D31: =IF(input!D32="","",input!D32) -> 6.007 | E31: =IF(input!E32="","",input!E32) ->  | F31: =IF(input!F32="","",input!F32) ->  | G31: =IF(input!G32="","",input!G32) ->  | H31: =IF(input!H32="","",input!H32) ->  | J31: 0 | N31: 6.007 | O31: 6.007 | U31: 0 | V31: 0 | W31: 0 | X31: 0 | Y31: 0 | Z31: 0
B32: i=14 | C32: =IF(input!C33="","",input!C33) -> 5.985 | D32: =IF(input!D33="","",input!D33) -> 5.986 | E32: =IF(input!E33="","",input!E33) ->  | F32: =IF(input!F33="","",input!F33) ->  | G32: =IF(input!G33="","",input!G33) ->  | H32: =IF(input!H33="","",input!H33) ->  | J32: 0.001 | N32: 5.985 | O32: 5.986 | U32: 0 | V32: 0 | W32: 0 | X32: 0 | Y32: 0 | Z32: 0
B33: i=15 | C33: =IF(input!C34="","",input!C34) -> 6.014 | D33: =IF(input!D34="","",input!D34) -> 6.014 | E33: =IF(input!E34="","",input!E34) ->  | F33: =IF(input!F34="","",input!F34) ->  | G33: =IF(input!G34="","",input!G34) ->  | H33: =IF(input!H34="","",input!H34) ->  | J33: 0 | N33: 6.014 | O33: 6.014 | U33: 0 | V33: 0 | W33: 0 | X33: 0 | Y33: 0 | Z33: 0
B34: i=16 | C34: =IF(input!C35="","",input!C35) -> 5.973 | D34: =IF(input!D35="","",input!D35) -> 5.972 | E34: =IF(input!E35="","",input!E35) ->  | F34: =IF(input!F35="","",input!F35) ->  | G34: =IF(input!G35="","",input!G35) ->  | H34: =IF(input!H35="","",input!H35) ->  | J34: 0.001 | N34: 5.973 | O34: 5.972 | U34: 0 | V34: 0 | W34: 0 | X34: 0 | Y34: 0 | Z34: 0
B35: i=17 | C35: =IF(input!C36="","",input!C36) -> 5.997 | D35: =IF(input!D36="","",input!D36) -> 5.996 | E35: =IF(input!E36="","",input!E36) ->  | F35: =IF(input!F36="","",input!F36) ->  | G35: =IF(input!G36="","",input!G36) ->  | H35: =IF(input!H36="","",input!H36) ->  | J35: 0.001 | N35: 5.997 | O35: 5.996 | U35: 0 | V35: 0 | W35: 0 | X35: 0 | Y35: 0 | Z35: 0
B36: i=18 | C36: =IF(input!C37="","",input!C37) -> 6.019 | D36: =IF(input!D37="","",input!D37) -> 6.015 | E36: =IF(input!E37="","",input!E37) ->  | F36: =IF(input!F37="","",input!F37) ->  | G36: =IF(input!G37="","",input!G37) ->  | H36: =IF(input!H37="","",input!H37) ->  | J36: 0.004 | N36: 6.019 | O36: 6.015 | U36: 0 | V36: 0 | W36: 0 | X36: 0 | Y36: 0 | Z36: 0
B37: i=19 | C37: =IF(input!C38="","",input!C38) -> 5.987 | D37: =IF(input!D38="","",input!D38) -> 5.986 | E37: =IF(input!E38="","",input!E38) ->  | F37: =IF(input!F38="","",input!F38) ->  | G37: =IF(input!G38="","",input!G38) ->  | H37: =IF(input!H38="","",input!H38) ->  | J37: 0.001 | N37: 5.987 | O37: 5.986 | U37: 0 | V37: 0 | W37: 0 | X37: 0 | Y37: 0 | Z37: 0
B38: i=20 | C38: =IF(input!C39="","",input!C39) -> 6.029 | D38: =IF(input!D39="","",input!D39) -> 6.025 | E38: =IF(input!E39="","",input!E39) ->  | F38: =IF(input!F39="","",input!F39) ->  | G38: =IF(input!G39="","",input!G39) ->  | H38: =IF(input!H39="","",input!H39) ->  | J38: 0.004 | N38: 6.029 | O38: 6.025 | U38: 0 | V38: 0 | W38: 0 | X38: 0 | Y38: 0 | Z38: 0
B39: i=21 | C39: =IF(input!C40="","",input!C40) -> 6.017 | D39: =IF(input!D40="","",input!D40) -> 6.019 | E39: =IF(input!E40="","",input!E40) ->  | F39: =IF(input!F40="","",input!F40) ->  | G39: =IF(input!G40="","",input!G40) ->  | H39: =IF(input!H40="","",input!H40) ->  | J39: 0.002 | N39: 6.017 | O39: 6.019 | U39: 0 | V39: 0 | W39: 0 | X39: 0 | Y39: 0 | Z39: 0
B40: i=22 | C40: =IF(input!C41="","",input!C41) -> 6.003 | D40: =IF(input!D41="","",input!D41) -> 6.001 | E40: =IF(input!E41="","",input!E41) ->  | F40: =IF(input!F41="","",input!F41) ->  | G40: =IF(input!G41="","",input!G41) ->  | H40: =IF(input!H41="","",input!H41) ->  | J40: 0.002 | N40: 6.003 | O40: 6.001 | U40: 0 | V40: 0 | W40: 0 | X40: 0 | Y40: 0 | Z40: 0
B41: i=23 | C41: =IF(input!C42="","",input!C42) -> 6.009 | D41: =IF(input!D42="","",input!D42) -> 6.012 | E41: =IF(input!E42="","",input!E42) ->  | F41: =IF(input!F42="","",input!F42) ->  | G41: =IF(input!G42="","",input!G42) ->  | H41: =IF(input!H42="","",input!H42) ->  | J41: 0.003 | N41: 6.009 | O41: 6.012 | U41: 0 | V41: 0 | W41: 0 | X41: 0 | Y41: 0 | Z41: 0
B42: i=24 | C42: =IF(input!C43="","",input!C43) -> 5.987 | D42: =IF(input!D43="","",input!D43) -> 5.987 | E42: =IF(input!E43="","",input!E43) ->  | F42: =IF(input!F43="","",input!F43) ->  | G42: =IF(input!G43="","",input!G43) ->  | H42: =IF(input!H43="","",input!H43) ->  | J42: 0 | N42: 5.987 | O42: 5.987 | U42: 0 | V42: 0 | W42: 0 | X42: 0 | Y42: 0 | Z42: 0
B43: i=25 | C43: =IF(input!C44="","",input!C44) -> 6.006 | D43: =IF(input!D44="","",input!D44) -> 6.003 | E43: =IF(input!E44="","",input!E44) ->  | F43: =IF(input!F44="","",input!F44) ->  | G43: =IF(input!G44="","",input!G44) ->  | H43: =IF(input!H44="","",input!H44) ->  | J43: 0.003 | N43: 6.006 | O43: 6.003 | U43: 0 | V43: 0 | W43: 0 | X43: 0 | Y43: 0 | Z43: 0
Z44: Summe | AA44: =SUM(U19:Z43) -> 0
G48: Standard- abweichung | O48: Werte
B49: Einflussgrößen | G49: SD | N49: 1 | O49: =C19 -> 6.029 | Q49: =SUBSTITUTE(O49,",",".") -> 6.029 | R49: "," | U49: userapiname | W49: userapikey | Y49: verteilung | AA49: "OGW: | AC49: "UGW:
B50: Teile (Part Variation) Teilestreuung | F50: PV | G50: 0.01770080036 | I50: =T62 -> 0 | N50: 2 | O50: 6.019 | Q50: 6.019 | R50: "," | T50: "a":[" | U50: =info_setup!C5 -> xx@sixsigmablackbelt.de | V50: "," | W50: =info_setup!C6 -> GFRDESX | X50: "," | Y50: hans | Z50: "," | AA50: 1 | AB50: "," | AC50: =1 -> 1 | AD50: "," | AE50: =D17 -> Hauser | AF50: "," | AG50: Zimmer | AH50: "," | AI50: Weber | AJ50: ","
B51: Prüfer (Appraiser Variation) Vergleichspräzision | N51: 3 | O51: 6.004 | Q51: 6.004 | R51: "," | T51: =T50&U50&V50&W50&X50&Y50&Z50&AA50&AB50&AC50&AD50&AE50&AF50&AG50&AH50&AI50&AJ50 -> "a":["xx@sixsigmablackbelt.de","GFRDESX","hans","1","1","Hauser","Zimmer","Weber","
B52: Wechselwirkung (Interaction) | N52: 4 | O52: 5.982 | Q52: 5.982 | R52: "," | T52: =T51&W58&W68&W78&W88&W98&W108&W118&W128&W138&W148&W158&W168&W178&W188&W198 -> "a":["xx@sixsigmablackbelt.de","GFRDESX","hans","1","1","Hauser","Zimmer","Weber","6.029","6.019","6.004","5.982","6.009","5.971","5.995","6.014","5.985","6.024","6.033","6.02","6.007","5.985","6.014","5.973","5.997","6.019","5.987","6.029","6.017","6.003","6.009","5.987","6.006","6.03","6.02","6.003","5.982","6.009","5.972","5.997","6.018","5.987","6.028","6.032","6.019","6.007","5.986","6.014","5.972","5.996","6.015","5.986","6.025","6.019","6.001","6.012","5.987","6.003","","","","","","","","","","","","","","","","","","","","","","","","","","","","","","","","","","","","","","","","","","","","","","","","","","","","","","","","","","","","","","","","","","","","","","","","","","","","","","","","","","","","","","","","","","","","","","","","","","","",""]
B53: Messeinrichtung (Equipment Variation) Wiederholpräzision | F53: EV | G53: 0.001469693846 | I53: =T60 -> 0 | N53: 5 | O53: 6.009 | Q53: 6.009 | R53: ","
B54: Prüfsystemstreuung | F54: GRR | G54: 0.001469693846 | I54: =T61 -> 0 | N54: 6 | O54: 5.971 | Q54: 5.971 | R54: "," | T54: ["{\"ergebnisuservalidieren\":[\"user xx@sixsigmablackbelt.de mit msa3 in datensatz nicht vorhanden\"],\"ergebnisuservalidieren_status\":[\"nein\"],\"Lizenzdatum\":[\"\"],\"Notiz\":[\" \"],\"MSA3_1\":[0],\"MSA3_2\":[0],\"MSA3_3\":[0],\"MSA3_4\":[0],\"MSA3_5\":[0]}"]
B55: Gesamtstreuung (Total Variation) | F55: TV | G55: 0.01776170975 | I55: =T63 -> 0 | N55: 7 | O55: 5.995 | Q55: 5.995 | R55: ","
B56: Anzahl unterscheidbarer Klassen (min 5) | F56: ndc | G56: 16 | I56: =T64 -> 0 | N56: 8 | O56: 6.014 | Q56: 6.014 | R56: "," | T56: ergebnisuservalidieren:user xx@sixsigmablackbelt.de mit msa3 in datensatz nicht vorhanden
N57: 9 | O57: 5.985 | Q57: 5.985 | R57: "," | T57: nein
N58: 10 | O58: 6.024 | Q58: 6.024 | R58: "," | W58: =Q49&R49&Q50&R50&Q51&R51&Q52&R52&Q53&R53&Q54&R54&Q55&R55&Q56&R56&Q57&R57&Q58&R58 -> 6.029","6.019","6.004","5.982","6.009","5.971","5.995","6.014","5.985","6.024","
N59: 11 | O59: 6.033 | Q59: 6.033 | R59: ","
N60: 12 | O60: 6.02 | Q60: 6.02 | R60: "," | T60: 0
N61: 13 | O61: 6.007 | Q61: 6.007 | R61: "," | T61: 0
N62: 14 | O62: 5.985 | Q62: 5.985 | R62: "," | T62: 0
N63: 15 | O63: 6.014 | Q63: 6.014 | R63: "," | T63: 0
N64: 16 | O64: 5.973 | Q64: 5.973 | R64: "," | T64: 0
N65: 17 | O65: 5.997 | Q65: 5.997 | R65: ","
N66: 18 | O66: 6.019 | Q66: 6.019 | R66: ","
N67: 19 | O67: 5.987 | Q67: 5.987 | R67: ","
K68: =0 -> 0 | N68: 20 | O68: 6.029 | Q68: 6.029 | R68: "," | W68: =Q59&R59&Q60&R60&Q61&R61&Q62&R62&Q63&R63&Q64&R64&Q65&R65&Q66&R66&Q67&R67&Q68&R68 -> 6.033","6.02","6.007","5.985","6.014","5.973","5.997","6.019","5.987","6.029","
K69: =K68+K13 -> 0 | N69: 21 | O69: 6.017 | Q69: 6.017 | R69: ","
K70: =K14-K13 -> 0 | N70: 22 | O70: 6.003 | Q70: 6.003 | R70: ","
K71: =1-K14 -> 1 | N71: 23 | O71: 6.009 | Q71: 6.009 | R71: ","
N72: 24 | O72: 5.987 | Q72: 5.987 | R72: ","
N73: 25 | O73: 6.006 | Q73: 6.006 | R73: ","
N74: 26 | O74: =D19 -> 6.03 | Q74: 6.03 | R74: ","
N75: 27 | O75: 6.02 | Q75: 6.02 | R75: ","
N76: 28 | O76: 6.003 | Q76: 6.003 | R76: ","
N77: 29 | O77: 5.982 | Q77: 5.982 | R77: ","
N78: 30 | O78: 6.009 | Q78: 6.009 | R78: "," | W78: =Q69&R69&Q70&R70&Q71&R71&Q72&R72&Q73&R73&Q74&R74&Q75&R75&Q76&R76&Q77&R77&Q78&R78 -> 6.017","6.003","6.009","5.987","6.006","6.03","6.02","6.003","5.982","6.009","
N79: 31 | O79: 5.972 | Q79: 5.972 | R79: ","
N80: 32 | O80: 5.997 | Q80: 5.997 | R80: ","
N81: 33 | O81: 6.018 | Q81: 6.018 | R81: ","
N82: 34 | O82: 5.987 | Q82: 5.987 | R82: ","
N83: 35 | O83: 6.028 | Q83: 6.028 | R83: ","
N84: 36 | O84: 6.032 | Q84: 6.032 | R84: ","
N85: 37 | O85: 6.019 | Q85: 6.019 | R85: ","
N86: 38 | O86: 6.007 | Q86: 6.007 | R86: ","
N87: 39 | O87: 5.986 | Q87: 5.986 | R87: ","
N88: 40 | O88: 6.014 | Q88: 6.014 | R88: "," | W88: =Q79&R79&Q80&R80&Q81&R81&Q82&R82&Q83&R83&Q84&R84&Q85&R85&Q86&R86&Q87&R87&Q88&R88 -> 5.972","5.997","6.018","5.987","6.028","6.032","6.019","6.007","5.986","6.014","
N89: 41 | O89: 5.972 | Q89: 5.972 | R89: ","
N90: 42 | O90: 5.996 | Q90: 5.996 | R90: ","
N91: 43 | O91: 6.015 | Q91: 6.015 | R91: ","
N92: 44 | O92: 5.986 | Q92: 5.986 | R92: ","
N93: 45 | O93: 6.025 | Q93: 6.025 | R93: ","
N94: 46 | O94: 6.019 | Q94: 6.019 | R94: ","
N95: 47 | O95: 6.001 | Q95: 6.001 | R95: ","
N96: 48 | O96: 6.012 | Q96: 6.012 | R96: ","
N97: 49 | O97: 5.987 | Q97: 5.987 | R97: ","
N98: 50 | O98: 6.003 | Q98: 6.003 | R98: "," | W98: =Q89&R89&Q90&R90&Q91&R91&Q92&R92&Q93&R93&Q94&R94&Q95&R95&Q96&R96&Q97&R97&Q98&R98 -> 5.972","5.996","6.015","5.986","6.025","6.019","6.001","6.012","5.987","6.003","
N99: 51 | O99: =E19 ->  | R99: ","
N100: 52 | R100: ","
N101: 53 | R101: ","
N102: 54 | R102: ","
N103: 55 | R103: ","
N104: 56 | R104: ","
N105: 57 | R105: ","
N106: 58 | R106: ","
N107: 59 | R107: ","
N108: 60 | R108: "," | W108: =Q99&R99&Q100&R100&Q101&R101&Q102&R102&Q103&R103&Q104&R104&Q105&R105&Q106&R106&Q107&R107&Q108&R108 -> ","","","","","","","","","","
N109: 61 | R109: ","
N110: 62 | R110: ","
N111: 63 | R111: ","
N112: 64 | R112: ","
N113: 65 | Q113: =SUBSTITUTE(O113,",",".") ->  | R113: ","
N114: 66 | R114: ","
N115: 67 | R115: ","
N116: 68 | R116: ","
N117: 69 | R117: ","
N118: 70 | R118: "," | W118: =Q109&R109&Q110&R110&Q111&R111&Q112&R112&Q113&R113&Q114&R114&Q115&R115&Q116&R116&Q117&R117&Q118&R118 -> ","","","","","","","","","","
N119: 71 | R119: ","
N120: 72 | R120: ","
N121: 73 | R121: ","
N122: 74 | R122: ","
N123: 75 | R123: ","
N124: 76 | O124: =F19 ->  | R124: ","
N125: 77 | R125: ","
N126: 78 | R126: ","
N127: 79 | R127: ","
N128: 80 | R128: "," | W128: =Q119&R119&Q120&R120&Q121&R121&Q122&R122&Q123&R123&Q124&R124&Q125&R125&Q126&R126&Q127&R127&Q128&R128 -> ","","","","","","","","","","
N129: 81 | R129: ","
N130: 82 | R130: ","
N131: 83 | R131: ","
N132: 84 | R132: ","
N133: 85 | R133: ","
N134: 86 | R134: ","
N135: 87 | R135: ","
N136: 88 | R136: ","
N137: 89 | R137: ","
N138: 90 | R138: "," | W138: =Q129&R129&Q130&R130&Q131&R131&Q132&R132&Q133&R133&Q134&R134&Q135&R135&Q136&R136&Q137&R137&Q138&R138 -> ","","","","","","","","","","
N139: 91 | R139: ","
N140: 92 | R140: ","
N141: 93 | R141: ","
N142: 94 | R142: ","
N143: 95 | R143: ","
N144: 96 | R144: ","
N145: 97 | R145: ","
N146: 98 | R146: ","
N147: 99 | R147: ","
N148: 100 | R148: "," | W148: =Q139&R139&Q140&R140&Q141&R141&Q142&R142&Q143&R143&Q144&R144&Q145&R145&Q146&R146&Q147&R147&Q148&R148 -> ","","","","","","","","","","
N149: 101 | O149: =G19 ->  | R149: ","
N150: 102 | R150: ","
N151: 103 | R151: ","
N152: 104 | R152: ","
N153: 105 | R153: ","
N154: 106 | R154: ","
N155: 107 | R155: ","
N156: 108 | R156: ","
N157: 109 | R157: ","
N158: 110 | R158: "," | W158: =Q149&R149&Q150&R150&Q151&R151&Q152&R152&Q153&R153&Q154&R154&Q155&R155&Q156&R156&Q157&R157&Q158&R158 -> ","","","","","","","","","","
N159: 111 | R159: ","
N160: 112 | R160: ","
N161: 113 | R161: ","
N162: 114 | R162: ","
N163: 115 | R163: ","
N164: 116 | R164: ","
N165: 117 | R165: ","
N166: 118 | R166: ","
N167: 119 | R167: ","
N168: 120 | R168: "," | W168: =Q159&R159&Q160&R160&Q161&R161&Q162&R162&Q163&R163&Q164&R164&Q165&R165&Q166&R166&Q167&R167&Q168&R168 -> ","","","","","","","","","","
N169: 121 | R169: ","
N170: 122 | R170: ","
N171: 123 | R171: ","
N172: 124 | R172: ","
N173: 125 | R173: ","
N174: 126 | O174: =H19 ->  | R174: ","
N175: 127 | R175: ","
N176: 128 | R176: ","
N177: 129 | Q177: =SUBSTITUTE(O177,",",".") ->  | R177: ","
N178: 130 | R178: "," | W178: =Q169&R169&Q170&R170&Q171&R171&Q172&R172&Q173&R173&Q174&R174&Q175&R175&Q176&R176&Q177&R177&Q178&R178 -> ","","","","","","","","","","
N179: 131 | R179: ","
N180: 132 | R180: ","
N181: 133 | R181: ","
N182: 134 | R182: ","
N183: 135 | R183: ","
N184: 136 | R184: ","
N185: 137 | R185: ","
N186: 138 | R186: ","
N187: 139 | R187: ","
N188: 140 | R188: "," | W188: =Q179&R179&Q180&R180&Q181&R181&Q182&R182&Q183&R183&Q184&R184&Q185&R185&Q186&R186&Q187&R187&Q188&R188 -> ","","","","","","","","","","
N189: 141 | R189: ","
N190: 142 | R190: ","
N191: 143 | R191: ","
N192: 144 | R192: ","
N193: 145 | R193: ","
N194: 146 | R194: ","
N195: 147 | R195: ","
N196: 148 | R196: ","
N197: 149 | R197: ","
N198: 150 | R198: "] | W198: =Q189&R189&Q190&R190&Q191&R191&Q192&R192&Q193&R193&Q194&R194&Q195&R195&Q196&R196&Q197&R197&Q198&R198 -> ","","","","","","","","",""]

Sheet info_setup
B2: Gültige Lizenz erwerben | C2: Schreiben Sie eine Mail an roland.schnurr@sixsigmablackbelt.de
B5: User - Email | C5: xx@sixsigmablackbelt.de
B6: User - key | C6: GFRDESX
B8: Gültig bis | C8: =calculation!T58 -> 00:00:00
B9: Notizen | C9: =calculation!T59 -> 
B11: Bemerkung | C11: =calculation!T56 -> ergebnisuservalidieren:user xx@sixsigmablackbelt.de mit msa3 in datensatz nicht vorhanden
B15: Kontakt | C15: roland.schnurr@sixsigmablackbelt.de
B16: homepage | C16: www.sixsigmablackbelt.de

Sheet Muster Werte
A1: Muster Werte
A3: Bosch Heft Nr. 10 Ausgabe 05/2010 Blatt 17
A5: Teil | B5: Durchgang 1 | C5: Durchgang 2 | E5: Durchgang | F5: Teil | G5: Wert | I5: Minitab
A6: Teil 1 | B6: 6.029 | C6: 6.03 | E6: Durchgang 1 | F6: Teil 1 | G6: 6.029
A7: Teil 2 | B7: 6.019 | C7: 6.02 | E7: Durchgang 1 | F7: Teil 2 | G7: 6.019
A8: Teil 3 | B8: 6.004 | C8: 6.003 | E8: Durchgang 1 | F8: Teil 3 | G8: 6.004
A9: Teil 4 | B9: 5.982 | C9: 5.982 | E9: Durchgang 1 | F9: Teil 4 | G9: 5.982
A10: Teil 5 | B10: 6.009 | C10: 6.009 | E10: Durchgang 1 | F10: Teil 5 | G10: 6.009
A11: Teil 6 | B11: 5.971 | C11: 5.972 | E11: Durchgang 1 | F11: Teil 6 | G11: 5.971
A12: Teil 7 | B12: 5.995 | C12: 5.997 | E12: Durchgang 1 | F12: Teil 7 | G12: 5.995
A13: Teil 8 | B13: 6.014 | C13: 6.018 | E13: Durchgang 1 | F13: Teil 8 | G13: 6.014
A14: Teil 9 | B14: 5.985 | C14: 5.987 | E14: Durchgang 1 | F14: Teil 9 | G14: 5.985
A15: Teil 10 | B15: 6.024 | C15: 6.028 | E15: Durchgang 1 | F15: Teil 10 | G15: 6.024
A16: Teil 11 | B16: 6.033 | C16: 6.032 | E16: Durchgang 1 | F16: Teil 11 | G16: 6.033
A17: Teil 12 | B17: 6.02 | C17: 6.019 | E17: Durchgang 1 | F17: Teil 12 | G17: 6.02
A18: Teil 13 | B18: 6.007 | C18: 6.007 | E18: Durchgang 1 | F18: Teil 13 | G18: 6.007
A19: Teil 14 | B19: 5.985 | C19: 5.986 | E19: Durchgang 1 | F19: Teil 14 | G19: 5.985
A20: Teil 15 | B20: 6.014 | C20: 6.014 | E20: Durchgang 1 | F20: Teil 15 | G20: 6.014
A21: Teil 16 | B21: 5.973 | C21: 5.972 | E21: Durchgang 1 | F21: Teil 16 | G21: 5.973
A22: Teil 17 | B22: 5.997 | C22: 5.996 | E22: Durchgang 1 | F22: Teil 17 | G22: 5.997
A23: Teil 18 | B23: 6.019 | C23: 6.015 | E23: Durchgang 1 | F23: Teil 18 | G23: 6.019
A24: Teil 19 | B24: 5.987 | C24: 5.986 | E24: Durchgang 1 | F24: Teil 19 | G24: 5.987
A25: Teil 20 | B25: 6.029 | C25: 6.025 | E25: Durchgang 1 | F25: Teil 20 | G25: 6.029
A26: Teil 21 | B26: 6.017 | C26: 6.019 | E26: Durchgang 1 | F26: Teil 21 | G26: 6.017
A27: Teil 22 | B27: 6.003 | C27: 6.001 | E27: Durchgang 1 | F27: Teil 22 | G27: 6.003
A28: Teil 23 | B28: 6.009 | C28: 6.012 | E28: Durchgang 1 | F28: Teil 23 | G28: 6.009
A29: Teil 24 | B29: 5.987 | C29: 5.987 | E29: Durchgang 1 | F29: Teil 24 | G29: 5.987
A30: Teil 25 | B30: 6.006 | C30: 6.003 | E30: Durchgang 1 | F30: Teil 25 | G30: 6.006
E31: Durchgang 2 | F31: Teil 1 | G31: 6.03
E32: Durchgang 2 | F32: Teil 2 | G32: 6.02
E33: Durchgang 2 | F33: Teil 3 | G33: 6.003
E34: Durchgang 2 | F34: Teil 4 | G34: 5.982
E35: Durchgang 2 | F35: Teil 5 | G35: 6.009
E36: Durchgang 2 | F36: Teil 6 | G36: 5.972
E37: Durchgang 2 | F37: Teil 7 | G37: 5.997
E38: Durchgang 2 | F38: Teil 8 | G38: 6.018
E39: Durchgang 2 | F39: Teil 9 | G39: 5.987
E40: Durchgang 2 | F40: Teil 10 | G40: 6.028
E41: Durchgang 2 | F41: Teil 11 | G41: 6.032
E42: Durchgang 2 | F42: Teil 12 | G42: 6.019
E43: Durchgang 2 | F43: Teil 13 | G43: 6.007
E44: Durchgang 2 | F44: Teil 14 | G44: 5.986
E45: Durchgang 2 | F45: Teil 15 | G45: 6.014
E46: Durchgang 2 | F46: Teil 16 | G46: 5.972
E47: Durchgang 2 | F47: Teil 17 | G47: 5.996
E48: Durchgang 2 | F48: Teil 18 | G48: 6.015
E49: Durchgang 2 | F49: Teil 19 | G49: 5.986
E50: Durchgang 2 | F50: Teil 20 | G50: 6.025
E51: Durchgang 2 | F51: Teil 21 | G51: 6.019
E52: Durchgang 2 | F52: Teil 22 | G52: 6.001
E53: Durchgang 2 | F53: Teil 23 | G53: 6.012
E54: Durchgang 2 | F54: Teil 24 | G54: 5.987
E55: Durchgang 2 | F55: Teil 25 | G55: 6.003
B58: Durchgang 1 | C58: Durchgang 2 | E58: Durchgang | F58: Teil | G58: Wert | I58: Minitab
A59: Teil 1 | B59: 9.971 | C59: 9.97 | E59: Durchgang 1 | F59: Teil 1 | G59: 9.971
A60: Teil 2 | B60: 9.987 | C60: 9.988 | E60: Durchgang 1 | F60: Teil 2 | G60: 9.987
A61: Teil 3 | B61: 10.004 | C61: 10.003 | E61: Durchgang 1 | F61: Teil 3 | G61: 10.004
A62: Teil 4 | B62: 10.008 | C62: 10.008 | E62: Durchgang 1 | F62: Teil 4 | G62: 10.008
A63: Teil 5 | B63: 9.97 | C63: 9.97 | E63: Durchgang 1 | F63: Teil 5 | G63: 9.97
A64: Teil 6 | B64: 9.971 | C64: 9.972 | E64: Durchgang 1 | F64: Teil 6 | G64: 9.971
A65: Teil 7 | B65: 9.995 | C65: 9.997 | E65: Durchgang 1 | F65: Teil 7 | G65: 9.995
A66: Teil 8 | B66: 10.014 | C66: 10.018 | E66: Durchgang 1 | F66: Teil 8 | G66: 10.014
A67: Teil 9 | B67: 9.985 | C67: 9.987 | E67: Durchgang 1 | F67: Teil 9 | G67: 9.985
A68: Teil 10 | B68: 10.024 | C68: 10.028 | E68: Durchgang 1 | F68: Teil 10 | G68: 10.024
A69: Teil 11 | B69: 10.033 | C69: 10.032 | E69: Durchgang 1 | F69: Teil 11 | G69: 10.033
A70: Teil 12 | B70: 10.02 | C70: 10.019 | E70: Durchgang 1 | F70: Teil 12 | G70: 10.02
A71: Teil 13 | B71: 10.007 | C71: 10.007 | E71: Durchgang 1 | F71: Teil 13 | G71: 10.007
A72: Teil 14 | B72: 9.985 | C72: 9.986 | E72: Durchgang 1 | F72: Teil 14 | G72: 9.985
A73: Teil 15 | B73: 10.014 | C73: 10.014 | E73: Durchgang 1 | F73: Teil 15 | G73: 10.014
A74: Teil 16 | B74: 9.973 | C74: 9.972 | E74: Durchgang 1 | F74: Teil 16 | G74: 9.973
A75: Teil 17 | B75: 9.997 | C75: 9.996 | E75: Durchgang 1 | F75: Teil 17 | G75: 9.997
A76: Teil 18 | B76: 10.019 | C76: 10.015 | E76: Durchgang 1 | F76: Teil 18 | G76: 10.019
A77: Teil 19 | B77: 9.987 | C77: 9.986 | E77: Durchgang 1 | F77: Teil 19 | G77: 9.987
A78: Teil 20 | B78: 10.029 | C78: 10.025 | E78: Durchgang 1 | F78: Teil 20 | G78: 10.029
A79: Teil 21 | B79: 10.017 | C79: 10.019 | E79: Durchgang 1 | F79: Teil 21 | G79: 10.017
A80: Teil 22 | B80: 10.003 | C80: 10.001 | E80: Durchgang 1 | F80: Teil 22 | G80: 10.003
A81: Teil 23 | B81: 10.009 | C81: 10.012 | E81: Durchgang 1 | F81: Teil 23 | G81: 10.009
A82: Teil 24 | B82: 9.987 | C82: 9.987 | E82: Durchgang 1 | F82: Teil 24 | G82: 9.987
A83: Teil 25 | B83: 10.006 | C83: 10.003 | E83: Durchgang 1 | F83: Teil 25 | G83: 10.006
E84: Durchgang 2 | F84: Teil 1 | G84: 9.97
E85: Durchgang 2 | F85: Teil 2 | G85: 9.988
E86: Durchgang 2 | F86: Teil 3 | G86: 10.003
E87: Durchgang 2 | F87: Teil 4 | G87: 10.008
E88: Durchgang 2 | F88: Teil 5 | G88: 9.97
E89: Durchgang 2 | F89: Teil 6 | G89: 9.972
E90: Durchgang 2 | F90: Teil 7 | G90: 9.997
E91: Durchgang 2 | F91: Teil 8 | G91: 10.018
E92: Durchgang 2 | F92: Teil 9 | G92: 9.987
E93: Durchgang 2 | F93: Teil 10 | G93: 10.028
E94: Durchgang 2 | F94: Teil 11 | G94: 10.032
E95: Durchgang 2 | F95: Teil 12 | G95: 10.019
E96: Durchgang 2 | F96: Teil 13 | G96: 10.007
E97: Durchgang 2 | F97: Teil 14 | G97: 9.986
E98: Durchgang 2 | F98: Teil 15 | G98: 10.014
E99: Durchgang 2 | F99: Teil 16 | G99: 9.972
E100: Durchgang 2 | F100: Teil 17 | G100: 9.996
E101: Durchgang 2 | F101: Teil 18 | G101: 10.015
E102: Durchgang 2 | F102: Teil 19 | G102: 9.986
E103: Durchgang 2 | F103: Teil 20 | G103: 10.025
E104: Durchgang 2 | F104: Teil 21 | G104: 10.019
E105: Durchgang 2 | F105: Teil 22 | G105: 10.001
E106: Durchgang 2 | F106: Teil 23 | G106: 10.012
E107: Durchgang 2 | F107: Teil 24 | G107: 9.987
E108: Durchgang 2 | F108: Teil 25 | G108: 10.003
B112: Durchgang 1 | C112: Durchgang 2
A113: Teil 1 | B113: 56.8338 | C113: 56.8321 | E113: Durchgang 1 | F113: Teil 1 | G113: 56.8338
A114: Teil 2 | B114: 56.831 | C114: 56.832 | E114: Durchgang 1 | F114: Teil 2 | G114: 56.831
A115: Teil 3 | B115: 56.8359 | C115: 56.8368 | E115: Durchgang 1 | F115: Teil 3 | G115: 56.8359
A116: Teil 4 | B116: 56.8291 | C116: 56.8257 | E116: Durchgang 1 | F116: Teil 4 | G116: 56.8291
A117: Teil 5 | B117: 56.8294 | C117: 56.829 | E117: Durchgang 1 | F117: Teil 5 | G117: 56.8294
A118: Teil 6 | B118: 56.8206 | C118: 56.8202 | E118: Durchgang 1 | F118: Teil 6 | G118: 56.8206
A119: Teil 7 | B119: 56.841 | C119: 56.8401 | E119: Durchgang 1 | F119: Teil 7 | G119: 56.841
A120: Teil 8 | B120: 56.8305 | C120: 56.8295 | E120: Durchgang 1 | F120: Teil 8 | G120: 56.8305
A121: Teil 9 | B121: 56.8269 | C121: 56.8274 | E121: Durchgang 1 | F121: Teil 9 | G121: 56.8269
A122: Teil 10 | B122: 56.8386 | C122: 56.8386 | E122: Durchgang 1 | F122: Teil 10 | G122: 56.8386
A123: Teil 11 | B123: 56.8321 | C123: 56.8323 | E123: Durchgang 1 | F123: Teil 11 | G123: 56.8321
A124: Teil 12 | B124: 56.8331 | C124: 56.8334 | E124: Durchgang 1 | F124: Teil 12 | G124: 56.8331
A125: Teil 13 | B125: 56.8382 | C125: 56.84 | E125: Durchgang 1 | F125: Teil 13 | G125: 56.8382
A126: Teil 14 | B126: 56.8273 | C126: 56.8282 | E126: Durchgang 1 | F126: Teil 14 | G126: 56.8273
A127: Teil 15 | B127: 56.8235 | C127: 56.8247 | E127: Durchgang 1 | F127: Teil 15 | G127: 56.8235
A128: Teil 16 | B128: 56.8177 | C128: 56.8186 | E128: Durchgang 1 | F128: Teil 16 | G128: 56.8177
A129: Teil 17 | B129: 56.8332 | C129: 56.8339 | E129: Durchgang 1 | F129: Teil 17 | G129: 56.8332
A130: Teil 18 | B130: 56.8305 | C130: 56.8321 | E130: Durchgang 1 | F130: Teil 18 | G130: 56.8305
A131: Teil 19 | B131: 56.8228 | C131: 56.8233 | E131: Durchgang 1 | F131: Teil 19 | G131: 56.8228
A132: Teil 20 | B132: 56.831 | C132: 56.83 | E132: Durchgang 1 | F132: Teil 20 | G132: 56.831
A133: Teil 21 | B133: 56.8318 | C133: 56.8312 | E133: Durchgang 1 | F133: Teil 21 | G133: 56.8318
A134: Teil 22 | B134: 56.8344 | C134: 56.8358 | E134: Durchgang 1 | F134: Teil 22 | G134: 56.8344
A135: Teil 23 | B135: 56.8327 | C135: 56.8329 | E135: Durchgang 1 | F135: Teil 23 | G135: 56.8327
A136: Teil 24 | B136: 56.8213 | C136: 56.8221 | E136: Durchgang 1 | F136: Teil 24 | G136: 56.8213
A137: Teil 25 | B137: 56.8205 | C137: 56.8215 | E137: Durchgang 1 | F137: Teil 25 | G137: 56.8205
E138: Durchgang 2 | F138: Teil 1 | G138: 56.8321
E139: Durchgang 2 | F139: Teil 2 | G139: 56.832
E140: Durchgang 2 | F140: Teil 3 | G140: 56.8368
E141: Durchgang 2 | F141: Teil 4 | G141: 56.8257
E142: Durchgang 2 | F142: Teil 5 | G142: 56.829
E143: Durchgang 2 | F143: Teil 6 | G143: 56.8202
E144: Durchgang 2 | F144: Teil 7 | G144: 56.8401
E145: Durchgang 2 | F145: Teil 8 | G145: 56.8295
E146: Durchgang 2 | F146: Teil 9 | G146: 56.8274
E147: Durchgang 2 | F147: Teil 10 | G147: 56.8386
E148: Durchgang 2 | F148: Teil 11 | G148: 56.8323
E149: Durchgang 2 | F149: Teil 12 | G149: 56.8334
E150: Durchgang 2 | F150: Teil 13 | G150: 56.84
E151: Durchgang 2 | F151: Teil 14 | G151: 56.8282
E152: Durchgang 2 | F152: Teil 15 | G152: 56.8247
E153: Durchgang 2 | F153: Teil 16 | G153: 56.8186
E154: Durchgang 2 | F154: Teil 17 | G154: 56.8339
E155: Durchgang 2 | F155: Teil 18 | G155: 56.8321
E156: Durchgang 2 | F156: Teil 19 | G156: 56.8233
E157: Durchgang 2 | F157: Teil 20 | G157: 56.83
E158: Durchgang 2 | F158: Teil 21 | G158: 56.8312
E159: Durchgang 2 | F159: Teil 22 | G159: 56.8358
E160: Durchgang 2 | F160: Teil 23 | G160: 56.8329
E161: Durchgang 2 | F161: Teil 24 | G161: 56.8221
E162: Durchgang 2 | F162: Teil 25 | G162: 56.8215
A165: Teil Nr. | B165: m=1 | C165: m=2 | D165: m=3 | E165: m=4 | F165: m=5 | G165: m=6 | I165: Teil1 | J165: Messung 1 | K165: 0.015
A166: i=1 | B166: 0.015 | C166: 0.014 | D166: 0.015 | E166: 0.015 | F166: 0.014 | G166: 0.015 | I166: Teil2 | J166: Messung 1 | K166: 0.016
A167: i=2 | B167: 0.016 | C167: 0.015 | D167: 0.017 | E167: 0.016 | F167: 0.015 | G167: 0.017 | I167: Teil3 | J167: Messung 1 | K167: 0.015
A168: i=3 | B168: 0.015 | C168: 0.015 | D168: 0.015 | E168: 0.015 | F168: 0.015 | G168: 0.015 | I168: Teil4 | J168: Messung 1 | K168: 0.017
A169: i=4 | B169: 0.017 | C169: 0.016 | D169: 0.016 | E169: 0.017 | F169: 0.016 | G169: 0.016 | I169: Teil5 | J169: Messung 1 | K169: 0.015
A170: i=5 | B170: 0.015 | C170: 0.015 | D170: 0.015 | E170: 0.015 | F170: 0.015 | G170: 0.015 | I170: Teil6 | J170: Messung 1 | K170: 0.016
A171: i=6 | B171: 0.016 | C171: 0.017 | D171: 0.015 | E171: 0.016 | F171: 0.017 | G171: 0.015 | I171: Teil7 | J171: Messung 1 | K171: 0.015
A172: i=7 | B172: 0.015 | C172: 0.015 | D172: 0.013 | E172: 0.015 | F172: 0.015 | G172: 0.013 | I172: Teil8 | J172: Messung 1 | K172: 0.014
A173: i=8 | B173: 0.014 | C173: 0.016 | D173: 0.014 | E173: 0.014 | F173: 0.016 | G173: 0.014 | I173: Teil9 | J173: Messung 1 | K173: 0.013
A174: i=9 | B174: 0.013 | C174: 0.015 | D174: 0.015 | E174: 0.013 | F174: 0.015 | G174: 0.015 | I174: Teil10 | J174: Messung 1 | K174: 0.015
A175: i=10 | B175: 0.015 | C175: 0.014 | D175: 0.016 | E175: 0.015 | F175: 0.014 | G175: 0.016 | I175: Teil1 | J175: Messung 2 | K175: 0.014
I176: Teil2 | J176: Messung 2 | K176: 0.015
I177: Teil3 | J177: Messung 2 | K177: 0.015
I178: Teil4 | J178: Messung 2 | K178: 0.016
I179: Teil5 | J179: Messung 2 | K179: 0.015
I180: Teil6 | J180: Messung 2 | K180: 0.017
I181: Teil7 | J181: Messung 2 | K181: 0.015
I182: Teil8 | J182: Messung 2 | K182: 0.016
I183: Teil9 | J183: Messung 2 | K183: 0.015
I184: Teil10 | J184: Messung 2 | K184: 0.014
I185: Teil1 | J185: Messung 3 | K185: 0.015
I186: Teil2 | J186: Messung 3 | K186: 0.017
I187: Teil3 | J187: Messung 3 | K187: 0.015
I188: Teil4 | J188: Messung 3 | K188: 0.016
I189: Teil5 | J189: Messung 3 | K189: 0.015
I190: Teil6 | J190: Messung 3 | K190: 0.015
I191: Teil7 | J191: Messung 3 | K191: 0.013
I192: Teil8 | J192: Messung 3 | K192: 0.014
I193: Teil9 | J193: Messung 3 | K193: 0.015
I194: Teil10 | J194: Messung 3 | K194: 0.016
I195: Teil1 | J195: Messung 4 | K195: 0.015
I196: Teil2 | J196: Messung 4 | K196: 0.016
I197: Teil3 | J197: Messung 4 | K197: 0.015
I198: Teil4 | J198: Messung 4 | K198: 0.017
I199: Teil5 | J199: Messung 4 | K199: 0.015
I200: Teil6 | J200: Messung 4 | K200: 0.016
I201: Teil7 | J201: Messung 4 | K201: 0.015
I202: Teil8 | J202: Messung 4 | K202: 0.014
I203: Teil9 | J203: Messung 4 | K203: 0.013
I204: Teil10 | J204: Messung 4 | K204: 0.015
I205: Teil1 | J205: Messung 5 | K205: 0.014
I206: Teil2 | J206: Messung 5 | K206: 0.015
I207: Teil3 | J207: Messung 5 | K207: 0.015
I208: Teil4 | J208: Messung 5 | K208: 0.016
I209: Teil5 | J209: Messung 5 | K209: 0.015
... 15 more rows
